fUST/lending_fUST_20250701
["ID","MTS","AMOUNT","RATE_DAILY","PERIOD"]
[368700211,1751308242760,-500.0,0.00021973,2]
[368700212,1751308242769,-500.0,0.00021973,2]
[368700213,1751308242779,-500.0,0.00021973,2]
[368700214,1751308242788,-500.0,0.00021973,2]
[368700215,1751308242798,-500.0,0.00021973,2]
[368700216,1751308242808,-500.0,0.00021973,2]
[368700217,1751308242817,-500.0,0.00021973,2]
[368700218,1751308242827,-500.0,0.00021973,2]
[368700219,1751308242837,-858.86622399,0.00021974,2]
[368700221,1751308242846,-614.24,0.00021974,2]
[368700223,1751308242856,-460.0,0.00021974,2]
[368700225,1751308242865,-534.24,0.00021974,2]
[368700227,1751308242875,-460.0,0.00021975,2]
[368700229,1751308242884,-238.0,0.00021994,2]
[368700231,1751308242893,-75116.99563664,0.00021999,2]
[368700233,1751308242903,-2466.81,0.00022,7]
[368700235,1751308242912,-847.41730813,0.00022,7]
[368700237,1751308242922,-37863.91073517,0.00022,2]
[368700239,1751308242931,-15354.52,0.00022,7]
[368700240,1751308242941,-1109392.72794295,0.00022,5]
[368700241,1751308242950,-161.44317001,0.00022,2]
[368700242,1751308242959,-108078.37,0.00022,7]
[368700243,1751308242969,-193.59662985,0.00022009,2]
[368700244,1751308242979,-420.51565679,0.00022029,2]
[368700245,1751308242989,-153.0,0.00022088,2]
[368700246,1751308242998,-153.0,0.00022088,2]
[368700247,1751308243008,-153.0,0.00022088,2]
[368700248,1751308243019,-153.0,0.00022088,2]
[368700249,1751308243028,-153.0,0.00022088,2]
[368700250,1751308243037,-153.0,0.00022088,2]
[368700251,1751308243048,-153.0,0.00022088,2]
[368700252,1751308243057,-153.0,0.00022088,2]
[368700253,1751308243067,-153.0,0.00022088,2]
[368700254,1751308243076,-153.0,0.00022088,2]
[368700255,1751308243086,-153.0,0.00022088,2]
[368700256,1751308243095,-153.0,0.00022088,2]
[368700257,1751308243105,-153.0,0.00022088,2]
[368700258,1751308243114,-153.0,0.00022088,2]
[368700259,1751308243124,-153.0,0.00022088,2]
[368700260,1751308243133,-153.0,0.00022088,2]
[368700261,1751308243144,-153.0,0.00022088,2]
[368700262,1751308243154,-153.0,0.00022088,2]
[368700263,1751308243163,-153.0,0.00022088,2]
[368700264,1751308243173,-153.0,0.00022088,2]
[368700266,1751308243296,-153.0,0.00022088,2]
[368700267,1751308243308,-153.0,0.00022088,2]
[368700268,1751308243318,-153.0,0.00022088,2]
[368700269,1751308243328,-153.0,0.00022088,2]
[368700271,1751308243337,-153.0,0.00022088,2]
[368700272,1751308243359,-153.0,0.00022088,2]
[368700273,1751308243371,-153.0,0.00022088,2]
[368700274,1751308243382,-153.0,0.00022088,2]
[368700275,1751308243393,-153.0,0.00022088,2]
[368700276,1751308243404,-153.0,0.00022088,2]
[368700277,1751308243416,-153.0,0.00022088,2]
[368700278,1751308243428,-153.0,0.00022088,2]
[368700279,1751308243439,-153.0,0.00022088,2]
[368700280,1751308243449,-153.0,0.00022088,2]
[368700281,1751308243459,-153.0,0.00022088,2]
[368700282,1751308243469,-153.0,0.00022088,2]
[368700283,1751308243480,-153.0,0.00022088,2]
[368700284,1751308243490,-153.0,0.00022088,2]
[368700286,1751308243501,-153.0,0.00022088,2]
[368700287,1751308243510,-153.0,0.00022088,2]
[368700288,1751308243525,-153.0,0.00022088,2]
[368700289,1751308243535,-153.0,0.00022088,2]
[368700290,1751308243545,-153.0,0.00022088,2]
[368700291,1751308243555,-153.0,0.00022088,2]
[368700292,1751308243567,-153.0,0.00022088,2]
[368700293,1751308243577,-153.0,0.00022088,2]
[368700294,1751308243587,-153.0,0.00022088,2]
[368700295,1751308243598,-153.0,0.00022088,2]
[368700296,1751308243608,-153.0,0.00022088,2]
[368700297,1751308243618,-153.0,0.00022088,2]
[368700299,1751308243628,-153.0,0.00022088,2]
[368700301,1751308243638,-153.0,0.00022088,2]
[368700302,1751308243648,-153.0,0.00022088,2]
[368700303,1751308243658,-153.0,0.00022088,2]
[368700304,1751308243667,-153.0,0.00022088,2]
[368700305,1751308243677,-153.0,0.00022088,2]
[368700306,1751308243687,-153.0,0.00022088,2]
[368700307,1751308243697,-153.0,0.00022088,2]
[368700308,1751308243707,-153.0,0.00022088,2]
[368700309,1751308243717,-153.0,0.00022088,2]
[368700310,1751308243727,-153.0,0.00022088,2]
[368700311,1751308243737,-153.0,0.00022088,2]
[368700312,1751308243746,-153.0,0.00022088,2]
[368700313,1751308243756,-153.0,0.00022088,2]
[368700314,1751308243766,-153.0,0.00022088,2]
[368700315,1751308243776,-153.0,0.00022088,2]
[368700316,1751308243786,-1152.8508023,0.00022141,6]
[368700317,1751308243796,-500.0,0.00022187,2]
[368700318,1751308243806,-151.0,0.00022192,2]
[368700319,1751308243817,-510.22,0.00022206,2]
[368700320,1751308243827,-460.0,0.00022206,2]
[368700321,1751308243837,-460.0,0.00022245,2]
[368700322,1751308243847,-286.24172953,0.00022245,2]
[368700323,1751308243857,-486.69,0.00022245,2]
[368700324,1751308243867,-460.0,0.00022246,2]
[368700325,1751308243877,-460.0,0.00022246,2]
[368700326,1751308243887,-614.24,0.00022248,2]
[368700327,1751308243897,-460.0,0.00022248,2]
[368700328,1751308243907,-534.24,0.00022248,2]
[368700329,1751308243918,-500.0,0.00022285,2]
[368700330,1751308243928,-500.0,0.00022285,2]
[368700331,1751308243938,-500.0,0.00022294,2]
[368700332,1751308243949,-500.0,0.00022305,2]
[368700333,1751308243959,-500.0,0.00022305,2]
[368700334,1751308243975,-1152.8508023,0.00022314,7]
[368700335,1751308243985,-500.0,0.00022461,2]
[368700336,1751308243995,-510.22,0.0002248,2]
[368700337,1751308244005,-460.0,0.0002248,2]
[368700338,1751308244016,-1152.8508023,0.00022486,7]
[368700339,1751308244026,-1004.35877532,0.000225,2]
[368700340,1751308244035,-460.0,0.00022519,2]
[368700341,1751308244046,-486.69,0.00022519,2]
[368700342,1751308244056,-460.0,0.0002252,2]
[368700343,1751308244066,-460.0,0.0002252,2]
[368700344,1751308244076,-1000.0,0.00022521,2]
[368700345,1751308244085,-1000.0,0.00022521,2]
[368700346,1751308244096,-1000.93177596,0.00022521,2]
[368700347,1751308244105,-1000.0,0.00022521,2]
[368700348,1751308244115,-1000.0,0.00022521,2]
[368700349,1751308244125,-501.58217862,0.00022521,2]
[368700350,1751308244135,-1000.0,0.00022521,2]
[368700351,1751308244145,-1000.0,0.00022521,2]
[368700352,1751308244154,-500.79162839,0.00022521,2]
[368700353,1751308244164,-1000.0,0.00022521,2]
[368700354,1751308244175,-1000.0,0.00022521,2]
[368700355,1751308244185,-1000.0,0.00022521,2]
[368700356,1751308244195,-1000.0,0.00022521,2]
[368700357,1751308244205,-1000.0,0.00022521,2]
[368700358,1751308244215,-1000.0,0.00022521,2]
[368700359,1751308244226,-468.30036859,0.00022521,2]
[368700360,1751308244236,-1000.0,0.00022521,2]
[368700361,1751308244246,-1000.0,0.00022521,2]
[368700362,1751308244256,-408.06056088,0.00022521,2]
[368700363,1751308244266,-1000.0,0.00022521,2]
[368700364,1751308244275,-1000.0,0.00022521,2]
[368700365,1751308244285,-998.22847536,0.00022521,2]
[368700366,1751308244295,-1200.0,0.00022521,2]
[368700367,1751308244304,-1000.0,0.00022521,2]
[368700368,1751308244314,-1000.0,0.00022521,2]
[368700369,1751308244324,-1000.0,0.00022521,2]
[368700370,1751308244333,-1000.0,0.00022521,2]
[368700371,1751308244343,-1000.0,0.00022521,2]
[368700372,1751308244352,-1000.0,0.00022521,2]
[368700373,1751308244362,-1000.0,0.00022521,2]
[368700374,1751308244371,-1000.0,0.00022521,2]
[368700375,1751308244381,-1000.0,0.00022521,2]
[368700376,1751308244391,-1000.0,0.00022521,2]
[368700377,1751308244402,-1000.0,0.00022521,2]
[368700378,1751308244412,-552.70320587,0.00022521,2]
[368700379,1751308244421,-841.81617322,0.00022521,2]
[368700380,1751308244431,-500.0,0.00022521,2]
[368700381,1751308244441,-1000.0,0.00022521,2]
[368700382,1751308244451,-409.66645817,0.00022521,2]
[368700383,1751308244461,-501.46935114,0.00022521,2]
[368700384,1751308244471,-1000.0,0.00022521,2]
[368700385,1751308244481,-1000.0,0.00022521,2]
[368700386,1751308244493,-1000.0,0.00022521,2]
[368700387,1751308244503,-614.24,0.00022522,2]
[368700388,1751308244513,-460.0,0.00022522,2]
[368700389,1751308244525,-534.24,0.00022522,2]
[368700390,1751308244535,-2200.0,0.00022553,2]
[368700391,1751308244544,-39157.51352766,0.00022596,2]
[368700392,1751308244554,-151.0,0.000226,5]
[368700393,1751308244566,-30068.88854395,0.000226,5]
[368700394,1751308244578,-161.56557661,0.000226,7]
[368700395,1751308244593,-10079.64138291,0.000226,2]
[368700396,1751308244604,-11300.11963946,0.00022649,2]
[368700397,1751308244614,-1152.8508023,0.00022659,7]
[368700398,1751308244623,-587.0,0.00022671,2]
[368700399,1751308244633,-646.0,0.00022698,2]
[368700400,1751308244642,-2151.0,0.00022698,2]
[368700401,1751308244654,-406.0,0.00022698,2]
[368700402,1751308244665,-510.22,0.00022754,2]
[368700403,1751308244675,-460.0,0.00022754,2]
[368700404,1751308244686,-238.0,0.00022767,2]
[368700405,1751308244696,-460.0,0.00022793,2]
[368700406,1751308244705,-486.69,0.00022793,2]
[368700407,1751308244715,-460.0,0.00022794,2]
[368700408,1751308244725,-460.0,0.00022794,2]
[368700409,1751308244734,-614.24,0.00022796,2]
[368700410,1751308244744,-460.0,0.00022796,2]
[368700411,1751308244753,-534.24,0.00022796,2]
[368700412,1751308244763,-517.26412173,0.000228,5]
[368700413,1751308244774,-40677.64322148,0.00022824,5]
[368700414,1751308244883,-245822.29570568,0.00022824,5]
[368700415,1751308244894,-151.0,0.00022824,7]
[368700416,1751308244903,-151.0,0.00022824,7]
[368700417,1751308244913,-1152.8508023,0.00022831,8]
[368700418,1751308244924,-1115.51471181,0.00022833,2]
[368700419,1751308244934,-279.93027965,0.00022833,2]
[368700420,1751308244944,-1000.0,0.00022842,2]
[368700421,1751308244954,-847.41730813,0.000229,7]
[368700422,1751308244964,-188761.33933527,0.000229,7]
[368700423,1751308244977,-53563.91050832,0.000229,7]
[368700424,1751308245092,-460.0,0.0001923,2]
[368700425,1751308245102,-460.0,0.00019232,2]
[368700426,1751308245112,-460.0,0.00019504,2]
[368700427,1751308245122,-460.0,0.00019506,2]
[368700428,1751308245131,-74.27173491,0.00019778,2]
[368700429,1751308245143,-385.72826509,0.00019778,2]
[368700430,1751308245154,-565.78,0.0001978,2]
[368700431,1751308245163,-460.0,0.00020052,2]
[368700432,1751308245173,-460.0,0.00020326,2]
[368700433,1751308245183,-460.0,0.000206,2]
[368700434,1751308245193,-460.0,0.00020874,2]
[368700435,1751308245203,-460.0,0.00021974,2]
[368700436,1751308245212,-3332.33561143,0.00022,2]
[368700437,1751308245228,-460.0,0.00021148,2]
[368700438,1751308245238,-214.64824956,0.00022,2]
[368700439,1751308245249,-2407.5974123,0.00022,2]
[368700440,1751308245340,-202.92,0.00019232,2]
[368700441,1751308245350,-460.0,0.00021422,2]
[368700442,1751308245360,-460.0,0.00021696,2]
[368700443,1751308245370,-460.0,0.0002197,2]
[368700444,1751308245380,-10204.55966011,0.00022,2]
[368700445,1751308245395,-15578.83386605,0.00022,2]
[368700446,1751308245407,-499.950315,0.00022,2]
[368700448,1751308246187,-219.61,0.00019232,2]
[368700449,1751308246199,-460.0,0.00019232,2]
[368700450,1751308246209,-56.79236497,0.00019506,2]
[368700453,1751308252167,-403.20763503,0.00019506,2]
[368700454,1751308252177,-460.0,0.0001978,2]
[368700455,1751308252187,-460.0,0.00020054,2]
[368700456,1751308252196,-460.0,0.00020328,2]
[368700457,1751308252206,-460.0,0.00020602,2]
[368700458,1751308252215,-5147.98251323,0.00022,2]
[368700459,1751308252228,-17926.46649506,0.00022,2]
[368700466,1751308687584,750.426482,0.00018043,2]
[368700468,1751308760023,12933.895208,0.00018321,10]
[368700469,1751308764113,153.6,0.000181,2]
[368700485,1751309146222,-154.8952137,0.00018168,2]
[368700486,1751309156378,-145.1047863,0.00018168,2]
[368700487,1751309156400,-53.57313448,0.00018169,2]
[368700501,1751309218611,2102.84997641,0.00017579,2]
[368700502,1751309218633,1783.56674739,0.00017579,2]
[368700503,1751309235087,-300.0,0.00018168,2]
[368700504,1751309235110,-406.42686552,0.00018169,2]
[368700505,1751309235130,-460.0,0.00018169,2]
[368700506,1751309235153,-460.0,0.00018169,2]
[368700507,1751309235174,-833.7,0.00018169,2]
[368700508,1751309235195,-262.66321872,0.00018169,2]
[368700509,1751309235218,-510.08,0.00018169,2]
[368700510,1751309235239,-460.0,0.00018169,2]
[368700511,1751309235263,-507.93,0.00018169,2]
[368700512,1751309235285,-460.0,0.00018169,2]
[368700513,1751309235305,-460.0,0.00018169,2]
[368700514,1751309235326,-555.83,0.00018169,2]
[368700515,1751309235346,-460.0,0.00018169,2]
[368700516,1751309235366,-541.71,0.00018169,2]
[368700517,1751309235387,-513.39,0.00018169,2]
[368700518,1751309235408,-460.0,0.00018169,2]
[368700519,1751309235428,-460.0,0.00018169,2]
[368700520,1751309235449,-460.0,0.00018169,2]
[368700521,1751309235469,-460.0,0.00018169,2]
[368700522,1751309235492,-460.0,0.00018169,2]
[368700523,1751309235516,-562.59,0.00018169,2]
[368700524,1751309235539,-460.0,0.00018169,2]
[368700525,1751309235560,-460.0,0.00018169,2]
[368700526,1751309235580,-460.0,0.00018169,2]
[368700527,1751309235603,-460.0,0.00018169,2]
[368700528,1751309235628,-460.0,0.00018169,2]
[368700529,1751309235653,-460.0,0.00018169,2]
[368700530,1751309235676,-460.0,0.00018169,2]
[368700531,1751309235696,-460.0,0.00018169,2]
[368700532,1751309235717,-460.0,0.00018169,2]
[368700533,1751309235738,-460.0,0.00018169,2]
[368700534,1751309235759,-460.0,0.00018169,2]
[368700535,1751309235951,-460.0,0.00018169,2]
[368700536,1751309235977,-460.0,0.00018169,2]
[368700537,1751309235999,-460.0,0.00018169,2]
[368700538,1751309236020,-460.0,0.00018169,2]
[368700539,1751309236041,-460.0,0.00018169,2]
[368700540,1751309236062,-460.0,0.00018169,2]
[368700541,1751309236084,-460.0,0.00018169,2]
[368700542,1751309236107,-460.0,0.00018169,2]
[368700543,1751309236131,-460.0,0.00018169,2]
[368700544,1751309236153,-460.0,0.00018169,2]
[368700545,1751309236175,-460.0,0.00018169,2]
[368700546,1751309236197,-460.0,0.00018169,2]
[368700547,1751309236217,-460.0,0.00018169,2]
[368700548,1751309236238,-460.0,0.00018169,2]
[368700549,1751309236258,-460.0,0.00018169,2]
[368700550,1751309236279,-12394.90337094,0.00018169,2]
[368700551,1751309240146,-186.74021107,0.00018169,2]
[368700552,1751309324287,181.2169568,0.00017676,2]
[368700554,1751309347133,-460.0,0.00018168,2]
[368700555,1751309347160,-460.0,0.00018168,2]
[368700556,1751309347189,-300.0,0.00018168,2]
[368700557,1751309347220,-313.25978893,0.00018169,2]
[368700558,1751309347250,-460.0,0.00018169,2]
[368700559,1751309347278,-460.0,0.00018169,2]
[368700560,1751309347308,-460.0,0.00018169,2]
[368700561,1751309347338,-486.77,0.00018169,2]
[368700562,1751309347364,-500.0,0.00018169,2]
[368700563,1751309347386,-460.0,0.00018169,2]
[368700564,1751309347409,-569.1,0.00018169,2]
[368700565,1751309347442,-460.0,0.00018169,2]
[368700566,1751309347471,-460.0,0.00018169,2]
[368700567,1751309347499,-428.34106996,0.00018169,2]
[368700568,1751309347524,-460.0,0.00018169,2]
[368700569,1751309347551,-460.0,0.00018169,2]
[368700570,1751309347584,-460.0,0.00018169,2]
[368700571,1751309347613,-460.0,0.00018169,2]
[368700572,1751309347639,-535.01,0.00018169,2]
[368700573,1751309347666,-12505.09662906,0.00018169,2]
[368700574,1751309347692,-395.7325745,0.00018322,2]
[368700575,1751309347719,-833.7,0.00018443,2]
[368700576,1751309347747,-460.0,0.00018443,2]
[368700577,1751309347774,-460.0,0.00018443,2]
[368700578,1751309347801,-460.0,0.00018443,2]
[368700579,1751309347828,-460.0,0.00018443,2]
[368700580,1751309347854,-460.0,0.00018443,2]
[368700581,1751309347882,-460.0,0.00018443,2]
[368700582,1751309347909,-177.8,0.00018443,2]
[368700583,1751309347936,-460.0,0.00018443,2]
[368700584,1751309347964,-486.77,0.00018443,2]
[368700585,1751309347992,-460.0,0.00018443,2]
[368700586,1751309348022,-460.0,0.00018443,2]
[368700587,1751309348050,-3859.42149733,0.00018557,2]
[368700588,1751309351171,-12210.57786617,0.00018557,2]
[368700589,1751309351193,-833.7,0.00018716,2]
[368700590,1751309351216,-460.0,0.00018716,2]
[368700591,1751309351239,-167.1373555,0.00018716,2]
[368700592,1751309351475,-559.53,0.00018716,2]
[368700593,1751309351504,-460.0,0.00018716,2]
[368700594,1751309351527,-460.0,0.00018716,2]
[368700595,1751309351549,-460.0,0.00018716,2]
[368700596,1751309351571,-460.0,0.00018716,2]
[368700597,1751309351593,-486.77,0.00018716,2]
[368700598,1751309351616,-460.0,0.00018716,2]
[368700599,1751309351637,-196.26255277,0.00018716,2]
[368700600,1751309351657,-460.0,0.00018898,2]
[368700601,1751309351680,-460.0,0.00018898,2]
[368700602,1751309351701,-460.0,0.00018898,2]
[368700603,1751309351723,-460.0,0.00018898,2]
[368700604,1751309351743,-460.0,0.00018899,2]
[368700605,1751309351762,-256.88257178,0.000189,2]
[368700606,1751309351783,-871.04973064,0.00018956,2]
[368700607,1751309351803,-833.7,0.0001899,2]
[368700608,1751309351825,-460.0,0.0001899,2]
[368700609,1751309351846,-460.0,0.0001899,2]
[368700610,1751309351867,-460.0,0.0001899,2]
[368700611,1751309351890,-460.0,0.0001899,2]
[368700612,1751309351912,-460.0,0.0001899,2]
[368700613,1751309351934,-486.77,0.0001899,2]
[368700614,1751309351957,-166.71018356,0.0001899,2]
[368700615,1751309365156,-330.29996027,0.00018442,2]
[368700616,1751309371148,-129.70003973,0.00018442,2]
[368700617,1751309371171,-460.0,0.00018716,2]
[368700618,1751309371192,-460.0,0.00018898,2]
[368700619,1751309371214,-293.28981644,0.0001899,2]
[368700620,1751309371235,-180.24984347,0.0001899,2]
[368700621,1751309379630,450.8,0.00018169,2]
[368700740,1751309433967,-9.2,0.00018169,2]
[368700741,1751309433977,-460.0,0.00018169,2]
[368700742,1751309433987,-460.0,0.00018169,2]
[368700743,1751309433997,-364.17,0.00018169,2]
[368700744,1751309434007,-460.0,0.00018169,2]
[368700745,1751309434017,-460.0,0.00018169,2]
[368700746,1751309434032,-460.0,0.00018169,2]
[368700747,1751309434042,-268.86,0.00018169,2]
[368700748,1751309434051,-460.0,0.00018442,2]
[368700749,1751309434062,-300.0,0.00018442,2]
[368700750,1751309434072,-121.01705058,0.00018442,2]
[368700772,1751309438303,-338.98294942,0.00018442,2]
[368700774,1751309438312,-464.79780348,0.00018442,2]
[368700776,1751309438322,-460.0,0.00018442,2]
[368700778,1751309438332,-460.0,0.00018442,2]
[368700780,1751309438342,-460.0,0.00018442,2]
[368700782,1751309438352,-460.0,0.00018443,2]
[368700784,1751309438361,-460.0,0.00018443,2]
[368700786,1751309438371,-460.0,0.00018443,2]
[368700788,1751309438381,-61.53588499,0.00018716,2]
[368700789,1751309438393,-206.78411501,0.00018716,2]
[368700790,1751309438403,-460.0,0.00018716,2]
[368700791,1751309438412,-460.0,0.00018716,2]
[368700792,1751309438421,-166.26094229,0.00018716,2]
[368700793,1751309438433,-293.73905771,0.00018716,2]
[368700794,1751309438443,-460.0,0.00018898,2]
[368700795,1751309438453,-279.75015653,0.0001899,2]
[368700797,1751309438463,-460.0,0.0001899,2]
[368700798,1751309438472,-260.63441176,0.0001899,2]
[368700801,1751309438484,-199.36558824,0.0001899,2]
[368700803,1751309438494,-460.0,0.0001899,2]
[368700805,1751309438504,-204.32057977,0.00019072,2]
[368700807,1751309438513,-165.93996846,0.00019164,2]
[368700809,1751309438523,-460.0,0.00019172,2]
[368700811,1751309438532,-460.0,0.00019172,2]
[368700813,1751309438541,-460.0,0.00019172,2]
[368700815,1751309438551,-460.0,0.00019172,2]
[368700817,1751309438560,-460.0,0.00019172,2]
[368700819,1751309438569,-160.0,0.00019222,2]
[368700822,1751309438579,-460.0,0.00019229,2]
[368700825,1751309438589,-460.0,0.00019229,2]
[368700828,1751309438598,-159.27812402,0.00019229,2]
[368700831,1751309438610,-300.72187598,0.00019229,2]
[368700833,1751309438619,-460.0,0.0001923,2]
[368700835,1751309438629,-202.92,0.0001923,2]
[368700837,1751309438639,-219.61,0.0001923,2]
[368700841,1751309438648,-460.0,0.0001923,2]
[368700842,1751309438794,-460.0,0.0001923,2]
[368700843,1751309438804,-460.0,0.0001923,2]
[368700844,1751309438814,-460.0,0.0001923,2]
[368700845,1751309438825,-509.27589449,0.0001923,2]
[368700846,1751309438835,-460.0,0.0001923,2]
[368700847,1751309438844,-586.68,0.0001923,2]
[368700848,1751309438854,-461.34216602,0.0001923,2]
[368700849,1751309438864,-460.96887106,0.0001923,2]
[368700850,1751309438873,-462.34268705,0.0001923,2]
[368700851,1751309438883,-598.23016462,0.0001923,2]
[368700852,1751309438894,-477.28,0.0001923,2]
[368700853,1751309438904,-524.52,0.00019232,2]
[368700854,1751309438913,-460.0,0.00019232,2]
[368700855,1751309438923,-460.0,0.00019232,2]
[368700856,1751309438932,-460.0,0.00019232,2]
[368700857,1751309438942,-460.0,0.00019232,2]
[368700858,1751309438951,-460.0,0.00019232,2]
[368700859,1751309438961,-460.0,0.00019232,2]
[368700860,1751309438971,-460.0,0.00019232,2]
[368700861,1751309438980,-460.0,0.00019232,2]
[368700862,1751309438990,-460.0,0.00019232,2]
[368700863,1751309439000,-460.0,0.00019232,2]
[368700864,1751309439009,-460.0,0.00019232,2]
[368700865,1751309439020,-460.0,0.00019232,2]
[368700866,1751309439032,-460.0,0.00019232,2]
[368700867,1751309439042,-575.6,0.00019232,2]
[368700868,1751309439051,-460.0,0.00019232,2]
[368700869,1751309439060,-460.94739813,0.00019232,2]
[368700870,1751309439070,-460.0,0.00019232,2]
[368700871,1751309439079,-833.7,0.00019264,2]
[368700872,1751309439089,-460.0,0.00019264,2]
[368700873,1751309439099,-460.0,0.00019264,2]
[368700874,1751309439110,-486.77,0.00019264,2]
[368700875,1751309439120,-460.0,0.00019264,2]
[368700876,1751309439130,-409.65,0.00019264,2]
[368700877,1751309439140,-460.0,0.00019264,2]
[368700878,1751309439150,-460.0,0.00019264,2]
[368700879,1751309439160,-460.0,0.00019264,2]
[368700880,1751309439170,-460.0,0.00019446,2]
[368700882,1751309439180,-460.0,0.00019446,2]
[368700883,1751309439191,-460.0,0.00019446,2]
[368700885,1751309439203,-460.0,0.00019446,2]
[368700887,1751309439213,-460.0,0.00019446,2]
[368700889,1751309439223,-460.0,0.00019503,2]
[368700890,1751309439233,-460.0,0.00019503,2]
[368700891,1751309439243,-348.76,0.00019503,2]
[368700892,1751309439253,-333.0,0.00019506,2]
[368700893,1751309439263,-384.4,0.00019506,2]
[368700894,1751309439273,-460.0,0.00019506,2]
[368700895,1751309439283,-258.1,0.00019506,2]
[368700896,1751309439293,-833.7,0.00019538,2]
[368700897,1751309439303,-460.0,0.00019538,2]
[368700898,1751309439313,-460.0,0.00019538,2]
[368700899,1751309439323,-486.77,0.00019538,2]
[368700900,1751309439333,-460.0,0.00019538,2]
[368700901,1751309439343,-549.1753056,0.00019538,2]
[368700902,1751309439353,-460.0,0.00019538,2]
[368700903,1751309439364,-460.0,0.00019538,2]
[368700904,1751309439374,-460.0,0.0001972,2]
[368700905,1751309439384,-460.0,0.0001972,2]
[368700906,1751309439394,-460.0,0.0001972,2]
[368700907,1751309439404,-460.0,0.0001972,2]
[368700908,1751309439414,-460.0,0.0001972,2]
[368700909,1751309439423,-290.2870075,0.00019732,2]
[368700910,1751309439433,-460.0,0.00019777,2]
[368700911,1751309439445,-460.0,0.00019778,2]
[368700912,1751309439454,-460.0,0.00019781,2]
[368700913,1751309439463,-460.0,0.00019781,2]
[368700914,1751309439473,-460.0,0.00019781,2]
[368700915,1751309439482,-460.0,0.00019781,2]
[368700916,1751309439493,-203.31,0.00019781,2]
[368700917,1751309439503,-205.13,0.00019781,2]
[368700918,1751309439512,-460.0,0.00019781,2]
[368700919,1751309439522,-460.0,0.00019781,2]
[368700920,1751309439531,-500.0,0.00019781,2]
[368700921,1751309439541,-460.0,0.00019781,2]
[368700922,1751309439551,-460.0,0.00019781,2]
[368700923,1751309439561,-460.0,0.00019781,2]
[368700924,1751309439571,-460.0,0.00019781,2]
[368700925,1751309439580,-460.0,0.00019781,2]
[368700926,1751309439591,-460.62147498,0.00019781,2]
[368700927,1751309439600,-460.0,0.00019781,2]
[368700928,1751309439610,-504.93797022,0.00019781,2]
[368700929,1751309439620,-460.0,0.00019781,2]
[368700930,1751309439629,-460.0,0.00019781,2]
[368700931,1751309439639,-460.0,0.00019781,2]
[368700932,1751309439649,-460.0,0.00019781,2]
[368700933,1751309439659,-460.0,0.00019781,2]
[368700934,1751309439670,-460.0,0.00019781,2]
[368700935,1751309439679,-460.0,0.00019781,2]
[368700936,1751309439689,-460.0,0.00019781,2]
[368700937,1751309439698,-460.0,0.00019781,2]
[368700938,1751309439708,-539.9,0.00019781,2]
[368700939,1751309439718,-460.0,0.00019781,2]
[368700940,1751309439728,-460.0,0.00019781,2]
[368700941,1751309439738,-460.0,0.00019781,2]